[Event "*** Titled Tuesday Blitz"]
[Site "Chess.com"]
[Date "2020.04.21"]
[Round "1"]
[White "Phriex"]
[Black "Shield12"]
[Result "0-1"]
[WhiteElo "2461"]
[BlackElo "2919"]
[TimeControl "180+1"]
[EndTime "10:06:28 PDT"]
[Termination "Shield12 won by resignation"]

1. d4 {[%clk 0:03:00.7]} 1... Nf6 {[%clk 0:03:00.1]} 2. c4 {[%clk 0:02:58.6]}
2... e6 {[%clk 0:03:00.4]} 3. Nc3 {[%clk 0:02:55.1]} 3... Bb4 {[%clk 0:02:59.8]}
4. Qc2 {[%clk 0:02:47.6]} 4... O-O {[%clk 0:02:59]} 5. a3 {[%clk 0:02:47.5]}
5... Bxc3+ {[%clk 0:02:59]} 6. Qxc3 {[%clk 0:02:48.4]} 6... b6 {[%clk
0:02:59.3]} 7. Bg5 {[%clk 0:02:47.2]} 7... c5 {[%clk 0:02:59.6]} 8. dxc5 {[%clk
0:02:45.9]} 8... bxc5 {[%clk 0:03:00.5]} 9. e3 {[%clk 0:02:43.6]} 9... d6 {[%clk
0:02:59.5]} 10. Bd3 {[%clk 0:02:42.1]} 10... Nbd7 {[%clk 0:02:56.8]} 11. Ne2
{[%clk 0:02:38]} 11... Rb8 {[%clk 0:02:52.9]} 12. O-O {[%clk 0:02:37.1]} 12...
Qb6 {[%clk 0:02:46.8]} 13. Rab1 {[%clk 0:02:29.2]} 13... a5 {[%clk 0:02:40.7]}
14. Rfd1 {[%clk 0:02:24.5]} 14... Ba6 {[%clk 0:02:39.2]} 15. Bc2 {[%clk
0:02:20.8]} 15... h6 {[%clk 0:02:37.3]} 16. Bf4 {[%clk 0:02:20.1]} 16... e5
{[%clk 0:02:34.8]} 17. Bg3 {[%clk 0:02:20.6]} 17... d5 {[%clk 0:02:34]} 18. Bxe5
{[%clk 0:02:15.7]} 18... Nxe5 {[%clk 0:02:34.1]} 19. Qxe5 {[%clk 0:02:15.8]}
19... Bxc4 {[%clk 0:02:34.3]} 20. Nf4 {[%clk 0:02:11]} 20... Rfe8 {[%clk
0:02:07.5]} 21. Qf5 {[%clk 0:01:56.9]} 21... d4 {[%clk 0:02:05.8]} 22. exd4
{[%clk 0:01:49]} 22... cxd4 {[%clk 0:02:06.7]} 23. Bd3 {[%clk 0:01:49.3]} 23...
Bxd3 {[%clk 0:01:58.5]} 24. Qxd3 {[%clk 0:01:47.4]} 24... a4 {[%clk 0:01:54]}
25. h3 {[%clk 0:01:39.3]} 25... Re5 {[%clk 0:01:46]} 26. Ne2 {[%clk 0:01:20]}
26... Rd5 {[%clk 0:01:44.6]} 27. Qc4 {[%clk 0:01:07]} 27... Rbd8 {[%clk
0:01:36.8]} 28. Qxa4 {[%clk 0:01:03.4]} 28... d3 {[%clk 0:01:34.6]} 29. Nc3
{[%clk 0:01:01.1]} 29... Rd4 {[%clk 0:01:32.7]} 30. Qb5 {[%clk 0:00:57.7]} 30...
Qd6 {[%clk 0:01:28.7]} 31. Rd2 {[%clk 0:00:47.8]} 31... g6 {[%clk 0:01:12.3]}
32. Rbd1 {[%clk 0:00:47.9]} 32... Nh5 {[%clk 0:01:06.2]} 33. Qa5 {[%clk
0:00:36.6]} 33... Nf4 {[%clk 0:01:04.2]} 34. b4 {[%clk 0:00:20.9]} 34... Qc6
{[%clk 0:01:02.9]} 35. f3 {[%clk 0:00:06.9]} 35... Qxc3 {[%clk 0:01:00.7]} 0-1

[Event "*** Titled Tuesday Blitz"]
[Site "Chess.com"]
[Date "2020.04.21"]
[Round "1"]
[White "Egorov_Pavel"]
[Black "kleinebeer98"]
[Result "0-1"]
[WhiteElo "2374"]
[BlackElo "2713"]
[TimeControl "180+1"]
[EndTime "10:06:28 PDT"]
[Termination "kleinebeer98 won by checkmate"]

1. d4 {[%clk 0:02:59.3]} 1... d5 {[%clk 0:02:57.6]} 2. c4 {[%clk 0:02:59.3]}
2... Nc6 {[%clk 0:02:57.7]} 3. Nc3 {[%clk 0:02:59]} 3... Nf6 {[%clk 0:02:55.7]}
4. Nf3 {[%clk 0:02:58.6]} 4... dxc4 {[%clk 0:02:53.4]} 5. d5 {[%clk 0:02:57.5]}
5... Na5 {[%clk 0:02:52]} 6. Qa4+ {[%clk 0:02:53.7]} 6... c6 {[%clk 0:02:50.7]}
7. b4 {[%clk 0:02:51.4]} 7... cxb3 {[%clk 0:02:45.9]} 8. axb3 {[%clk 0:02:50.2]}
8... e6 {[%clk 0:02:26.8]} 9. Bd2 {[%clk 0:02:30.5]} 9... Nxb3 {[%clk
0:01:52.1]} 10. Qxb3 {[%clk 0:02:28]} 10... exd5 {[%clk 0:01:50.9]} 11. e3
{[%clk 0:02:21.4]} 11... Bd6 {[%clk 0:01:49.8]} 12. Bd3 {[%clk 0:02:18.4]} 12...
O-O {[%clk 0:01:49.3]} 13. O-O {[%clk 0:02:07.4]} 13... Re8 {[%clk 0:01:44.5]}
14. Ne2 {[%clk 0:01:49]} 14... Ne4 {[%clk 0:01:32.6]} 15. Bxe4 {[%clk
0:01:27.6]} 15... Rxe4 {[%clk 0:01:29.6]} 16. Bc3 {[%clk 0:01:20.1]} 16... a5
{[%clk 0:01:18.6]} 17. Ng3 {[%clk 0:01:13.8]} 17... Rc4 {[%clk 0:01:05.1]} 18.
Qb2 {[%clk 0:01:11.4]} 18... f6 {[%clk 0:01:02.2]} 19. h3 {[%clk 0:00:58.6]}
19... b5 {[%clk 0:00:54.2]} 20. Nh5 {[%clk 0:00:44.9]} 20... Qe8 {[%clk
0:00:44.8]} 21. Nxg7 {[%clk 0:00:35.1]} 21... Kxg7 {[%clk 0:00:43.8]} 22. Bxf6+
{[%clk 0:00:35.6]} 22... Kg8 {[%clk 0:00:43.8]} 23. Bh8 {[%clk 0:00:26.7]} 23...
Qg6 {[%clk 0:00:42.4]} 24. Bd4 {[%clk 0:00:08]} 24... Bxh3 {[%clk 0:00:36.1]}
25. Kh1 {[%clk 0:00:08.3]} 25... Qxg2# {[%clk 0:00:35.9]} 0-1

[Event "*** Titled Tuesday Blitz"]
[Site "Chess.com"]
[Date "2020.04.21"]
[Round "1"]
[White "Philosopherrr"]
[Black "powermove"]
[Result "1-0"]
[WhiteElo "2479"]
[BlackElo "1577"]
[TimeControl "180+1"]
[EndTime "10:06:34 PDT"]
[Termination "Philosopherrr won by resignation"]

1. Nf3 {[%clk 0:03:00.4]} 1... Nf6 {[%clk 0:02:55.6]} 2. g3 {[%clk 0:03:00.4]}
2... g6 {[%clk 0:02:52.7]} 3. Bg2 {[%clk 0:03:00.2]} 3... Bg7 {[%clk 0:02:52.5]}
4. O-O {[%clk 0:02:55.4]} 4... O-O {[%clk 0:02:44.4]} 5. c4 {[%clk 0:02:55.4]}
5... d6 {[%clk 0:02:43.7]} 6. Nc3 {[%clk 0:02:52.9]} 6... Nc6 {[%clk 0:02:43]}
7. b3 {[%clk 0:02:51.8]} 7... a6 {[%clk 0:02:40.5]} 8. Bb2 {[%clk 0:02:51.4]}
8... Rb8 {[%clk 0:02:40.1]} 9. Rc1 {[%clk 0:02:50.6]} 9... Bd7 {[%clk
0:02:33.8]} 10. d4 {[%clk 0:02:48]} 10... b5 {[%clk 0:02:31]} 11. cxb5 {[%clk
0:02:45.3]} 11... axb5 {[%clk 0:02:30.4]} 12. d5 {[%clk 0:02:45.4]} 12... Na5
{[%clk 0:02:28.6]} 13. Nd4 {[%clk 0:02:41]} 13... e5 {[%clk 0:02:22.8]} 14. Nc2
{[%clk 0:02:21.9]} 14... Nh5 {[%clk 0:01:51.1]} 15. Nb4 {[%clk 0:02:14.6]} 15...
f5 {[%clk 0:01:46.9]} 16. e3 {[%clk 0:02:10.9]} 16... Qg5 {[%clk 0:01:38.2]} 17.
f4 {[%clk 0:02:10.3]} 17... Qe7 {[%clk 0:01:33.2]} 18. Qd2 {[%clk 0:02:04.1]}
18... Rfe8 {[%clk 0:01:28.7]} 19. Nd1 {[%clk 0:01:56.1]} 19... Nb7 {[%clk
0:01:15.7]} 20. Rxc7 {[%clk 0:01:54.8]} 20... Qd8 {[%clk 0:00:55.3]} 21. Rc2
{[%clk 0:01:50.6]} 21... Nc5 {[%clk 0:00:52.2]} 22. Nc6 {[%clk 0:01:50.6]} 22...
Bxc6 {[%clk 0:00:51.5]} 23. dxc6 {[%clk 0:01:51.5]} 23... Qb6 {[%clk 0:00:47.2]}
24. Qxd6 {[%clk 0:01:45.7]} 24... Ne4 {[%clk 0:00:37.2]} 25. Bxe4 {[%clk
0:01:45.4]} 25... fxe4 {[%clk 0:00:35.9]} 26. Qd5+ {[%clk 0:01:36.5]} 26... Kh8
{[%clk 0:00:34.4]} 27. fxe5 {[%clk 0:01:36.2]} 27... Rbd8 {[%clk 0:00:32.8]} 28.
Qxe4 {[%clk 0:01:36.3]} 28... Nf6 {[%clk 0:00:20]} 29. exf6 {[%clk 0:01:12]}
29... Rxe4 {[%clk 0:00:18.8]} 30. fxg7+ {[%clk 0:01:12.6]} 30... Kg8 {[%clk
0:00:16.7]} 31. c7 {[%clk 0:01:12.6]} 31... Rc8 {[%clk 0:00:15.8]} 32. Rf8+
{[%clk 0:01:12.1]} 32... Rxf8 {[%clk 0:00:14.7]} 33. gxf8=Q+ {[%clk 0:01:12.7]}
33... Kxf8 {[%clk 0:00:15.6]} 34. c8=Q+ {[%clk 0:01:13.1]} 34... Kf7 {[%clk
0:00:15.8]} 35. Rc7+ {[%clk 0:01:10.8]} 1-0

[Event "*** Titled Tuesday Blitz"]
[Site "Chess.com"]
[Date "2020.04.21"]
[Round "1"]
[White "ChessicallyInclined"]
[Black "Kawhi_Leonard2"]
[Result "1-0"]
[WhiteElo "2607"]
[BlackElo "2266"]
[TimeControl "180+1"]
[EndTime "10:06:35 PDT"]
[Termination "ChessicallyInclined won by resignation"]

1. d4 {[%clk 0:03:00.9]} 1... Nf6 {[%clk 0:02:59]} 2. c4 {[%clk 0:03:00.9]} 2...
c5 {[%clk 0:02:58]} 3. d5 {[%clk 0:03:00.9]} 3... e6 {[%clk 0:02:57.9]} 4. Nc3
{[%clk 0:03:00]} 4... exd5 {[%clk 0:02:57.8]} 5. cxd5 {[%clk 0:03:00.9]} 5... d6
{[%clk 0:02:57.5]} 6. e4 {[%clk 0:03:01.2]} 6... g6 {[%clk 0:02:57.9]} 7. Nge2
{[%clk 0:03:01.1]} 7... Bg7 {[%clk 0:02:58.1]} 8. Ng3 {[%clk 0:03:01.6]} 8...
O-O {[%clk 0:02:56.7]} 9. Be2 {[%clk 0:03:02]} 9... a6 {[%clk 0:02:56.2]} 10. a4
{[%clk 0:03:01.5]} 10... Nbd7 {[%clk 0:02:56]} 11. O-O {[%clk 0:03:00.6]} 11...
Re8 {[%clk 0:02:56.2]} 12. Bg5 {[%clk 0:03:00.2]} 12... Qc7 {[%clk 0:02:52.7]}
13. Qd2 {[%clk 0:02:59.7]} 13... Rb8 {[%clk 0:02:51.8]} 14. Bh6 {[%clk
0:02:43.8]} 14... Bh8 {[%clk 0:02:50.1]} 15. h4 {[%clk 0:02:31.6]} 15... Ne5
{[%clk 0:02:47]} 16. h5 {[%clk 0:02:28.6]} 16... Bd7 {[%clk 0:02:39.8]} 17. Qg5
{[%clk 0:02:20.8]} 17... b5 {[%clk 0:02:31.1]} 18. axb5 {[%clk 0:02:04.7]} 18...
axb5 {[%clk 0:02:29.5]} 19. f3 {[%clk 0:01:29]} 19... b4 {[%clk 0:02:23.8]} 20.
Nd1 {[%clk 0:01:28.3]} 20... c4 {[%clk 0:02:22.7]} 21. Ne3 {[%clk 0:01:09.8]}
21... c3 {[%clk 0:02:19.7]} 22. f4 {[%clk 0:01:05.3]} 22... cxb2 {[%clk
0:02:15.8]} 23. Rab1 {[%clk 0:01:04.5]} 23... Nc6 {[%clk 0:00:45.4]} 24. dxc6
{[%clk 0:01:02]} 24... Bxc6 {[%clk 0:00:45.8]} 25. hxg6 {[%clk 0:00:54.9]} 25...
hxg6 {[%clk 0:00:45.2]} 26. Bc4 {[%clk 0:00:52.4]} 26... d5 {[%clk 0:00:27.4]}
27. Nxd5 {[%clk 0:00:49.3]} 27... Bxd5 {[%clk 0:00:26.2]} 28. Bxd5 {[%clk
0:00:48.5]} 28... Qc5+ {[%clk 0:00:24.7]} 29. Kh1 {[%clk 0:00:46]} 29... Nxd5
{[%clk 0:00:21.2]} 30. exd5 {[%clk 0:00:42.3]} 30... Re3 {[%clk 0:00:18.7]} 31.
f5 {[%clk 0:00:39.4]} 31... Rxg3 {[%clk 0:00:17.5]} 32. Qxg3 {[%clk 0:00:38.9]}
32... Qxd5 {[%clk 0:00:15.7]} 33. Qxb8+ {[%clk 0:00:38.5]} 33... Kh7 {[%clk
0:00:14.6]} 34. Qh2 {[%clk 0:00:37.9]} 1-0

[Event "*** Titled Tuesday Blitz"]
[Site "Chess.com"]
[Date "2020.04.21"]
[Round "1"]
[White "CraiggoryC"]
[Black "Ranindu2003"]
[Result "0-1"]
[WhiteElo "2067"]
[BlackElo "2510"]
[TimeControl "180+1"]
[EndTime "10:06:35 PDT"]
[Termination "Ranindu2003 won on time"]

1. e4 {[%clk 0:02:59.4]} 1... g6 {[%clk 0:02:57.4]} 2. d4 {[%clk 0:02:58.7]}
2... Bg7 {[%clk 0:02:57.5]} 3. Nc3 {[%clk 0:02:58.5]} 3... d6 {[%clk 0:02:58]}
4. Be3 {[%clk 0:02:57.4]} 4... a6 {[%clk 0:02:57.8]} 5. a4 {[%clk 0:02:55.1]}
5... b6 {[%clk 0:02:56.1]} 6. g3 {[%clk 0:02:53.5]} 6... Bb7 {[%clk 0:02:56]} 7.
Bg2 {[%clk 0:02:53.3]} 7... Nd7 {[%clk 0:02:55.8]} 8. Nge2 {[%clk 0:02:49.1]}
8... h6 {[%clk 0:02:51.1]} 9. O-O {[%clk 0:02:47.1]} 9... Ngf6 {[%clk
0:02:50.7]} 10. h3 {[%clk 0:02:42]} 10... c5 {[%clk 0:02:50.2]} 11. a5 {[%clk
0:02:38.9]} 11... cxd4 {[%clk 0:02:38.1]} 12. Nxd4 {[%clk 0:02:24.1]} 12... b5
{[%clk 0:02:33.8]} 13. e5 {[%clk 0:02:16.1]} 13... dxe5 {[%clk 0:02:15.3]} 14.
Bxb7 {[%clk 0:02:15]} 14... exd4 {[%clk 0:02:15.1]} 15. Bxd4 {[%clk 0:01:29.6]}
15... Rb8 {[%clk 0:02:06.7]} 16. Bxa6 {[%clk 0:01:23.8]} 16... b4 {[%clk
0:02:02.1]} 17. Ne2 {[%clk 0:00:40.1]} 17... O-O {[%clk 0:01:59.1]} 18. b3
{[%clk 0:00:33.7]} 18... Qc7 {[%clk 0:01:57.9]} 19. Bc4 {[%clk 0:00:31.3]} 19...
Rfd8 {[%clk 0:01:55]} 20. Qc1 {[%clk 0:00:25.5]} 20... e5 {[%clk 0:01:52.7]} 21.
Be3 {[%clk 0:00:22.9]} 21... Nc5 {[%clk 0:01:49.9]} 22. Bxh6 {[%clk 0:00:20.5]}
22... Nfe4 {[%clk 0:01:43.7]} 23. Bxg7 {[%clk 0:00:19.1]} 23... Kxg7 {[%clk
0:01:44.6]} 24. Rd1 {[%clk 0:00:16.8]} 24... Nd6 {[%clk 0:01:37.4]} 25. Bd5
{[%clk 0:00:14.7]} 25... Nb5 {[%clk 0:01:33.1]} 26. a6 {[%clk 0:00:13.3]} 26...
Rb6 {[%clk 0:01:28.8]} 27. a7 {[%clk 0:00:12]} 27... Nxa7 {[%clk 0:01:27.8]} 28.
Qe3 {[%clk 0:00:11.3]} 28... Nb5 {[%clk 0:01:24.5]} 29. c4 {[%clk 0:00:09.6]}
29... bxc3 {[%clk 0:01:22]} 30. Nxc3 {[%clk 0:00:08.8]} 30... Nd4 {[%clk
0:01:21]} 31. Bc4 {[%clk 0:00:07]} 31... Rf6 {[%clk 0:01:19.7]} 32. Be2 {[%clk
0:00:03.7]} 32... Nc2 {[%clk 0:01:15.9]} 33. Qg5 {[%clk 0:00:01.1]} 33... Nxa1
{[%clk 0:01:13.3]} 34. Rxa1 {[%clk 0:00:02]} 34... Ne6 {[%clk 0:01:11.6]} 0-1

[Event "*** Titled Tuesday Blitz"]
[Site "Chess.com"]
[Date "2020.04.21"]
[Round "1"]
[White "harkerchess"]
[Black "Problematique_99"]
[Result "0-1"]
[WhiteElo "1950"]
[BlackElo "2495"]
[TimeControl "180+1"]
[EndTime "10:06:35 PDT"]
[Termination "Problematique_99 won by resignation"]

1. d4 {[%clk 0:03:00.7]} 1... Nf6 {[%clk 0:02:59.7]} 2. Bg5 {[%clk 0:02:59.9]}
2... e6 {[%clk 0:02:59.4]} 3. e4 {[%clk 0:02:57.3]} 3... h6 {[%clk 0:02:59.4]}
4. Bxf6 {[%clk 0:02:56.5]} 4... Qxf6 {[%clk 0:03:00.3]} 5. Nf3 {[%clk
0:02:56.4]} 5... d6 {[%clk 0:02:59.1]} 6. Nc3 {[%clk 0:02:55.1]} 6... Nd7 {[%clk
0:02:51.8]} 7. Bd3 {[%clk 0:02:50.5]} 7... g5 {[%clk 0:02:41.7]} 8. h3 {[%clk
0:02:47.5]} 8... Bg7 {[%clk 0:02:40.9]} 9. Qe2 {[%clk 0:02:26.5]} 9... a6 {[%clk
0:02:39.8]} 10. O-O-O {[%clk 0:02:20.2]} 10... Qe7 {[%clk 0:02:39.4]} 11. Rhe1
{[%clk 0:02:17.3]} 11... b5 {[%clk 0:02:34.6]} 12. e5 {[%clk 0:02:05.2]} 12...
d5 {[%clk 0:02:29.4]} 13. Nb1 {[%clk 0:02:00.7]} 13... c5 {[%clk 0:02:28.4]} 14.
c3 {[%clk 0:01:56.1]} 14... c4 {[%clk 0:02:28.4]} 15. Bc2 {[%clk 0:01:55.6]}
15... b4 {[%clk 0:02:28.8]} 16. Qd2 {[%clk 0:01:52.4]} 16... Rb8 {[%clk
0:02:20.5]} 17. cxb4 {[%clk 0:01:39.5]} 17... Rxb4 {[%clk 0:02:12.7]} 18. Qc3
{[%clk 0:01:34.8]} 18... Nb6 {[%clk 0:01:53]} 19. a3 {[%clk 0:01:33.9]} 19...
Rb5 {[%clk 0:01:51.2]} 20. Nbd2 {[%clk 0:01:30.2]} 20... Bd7 {[%clk 0:01:44.4]}
21. Kb1 {[%clk 0:01:28.9]} 21... O-O {[%clk 0:01:34]} 22. Ka2 {[%clk 0:01:24.6]}
22... Rb8 {[%clk 0:01:32.2]} 23. Rb1 {[%clk 0:01:24]} 23... Bf8 {[%clk
0:01:14.8]} 24. Red1 {[%clk 0:01:14.4]} 24... Bc6 {[%clk 0:01:11.4]} 25. Ne1
{[%clk 0:01:11.9]} 25... Nd7 {[%clk 0:01:04.5]} 26. g3 {[%clk 0:01:09.3]} 26...
f6 {[%clk 0:01:00.9]} 27. f4 {[%clk 0:01:07.2]} 27... fxe5 {[%clk 0:01:01]} 28.
fxe5 {[%clk 0:01:05.5]} 28... Nb6 {[%clk 0:00:57.5]} 29. Nef3 {[%clk 0:01:00.8]}
29... Be8 {[%clk 0:00:56.4]} 30. h4 {[%clk 0:00:59.3]} 30... Qg7 {[%clk
0:00:54.3]} 31. hxg5 {[%clk 0:00:58.4]} 31... hxg5 {[%clk 0:00:55.2]} 32. Rh1
{[%clk 0:00:56.9]} 32... Bg6 {[%clk 0:00:54.7]} 33. Bxg6 {[%clk 0:00:55.9]}
33... Qxg6 {[%clk 0:00:55.6]} 34. Rh2 {[%clk 0:00:53.4]} 34... Na4 {[%clk
0:00:54.7]} 35. Qe3 {[%clk 0:00:51.4]} 35... Rxb2+ {[%clk 0:00:53.8]} 36. Rxb2
{[%clk 0:00:49.8]} 36... Rxb2+ {[%clk 0:00:53.9]} 37. Ka1 {[%clk 0:00:50.7]}
37... c3 {[%clk 0:00:41.7]} 38. Ne4 {[%clk 0:00:40.2]} 38... dxe4 {[%clk
0:00:38]} 39. Rxb2 {[%clk 0:00:36.8]} 39... cxb2+ {[%clk 0:00:36.8]} 40. Kb1
{[%clk 0:00:37.7]} 40... exf3+ {[%clk 0:00:36.7]} 0-1

[Event "*** Titled Tuesday Blitz"]
[Site "Chess.com"]
[Date "2020.04.21"]
[Round "1"]
[White "Bacyanide"]
[Black "KuzubovYuriy"]
[Result "0-1"]
[WhiteElo "2394"]
[BlackElo "2758"]
[TimeControl "180+1"]
[EndTime "10:06:36 PDT"]
[Termination "KuzubovYuriy won by checkmate"]

1. d4 {[%clk 0:02:59.5]} 1... Nf6 {[%clk 0:02:59.4]} 2. c4 {[%clk 0:02:59.7]}
2... e6 {[%clk 0:02:58.1]} 3. Nf3 {[%clk 0:02:57.5]} 3... d5 {[%clk 0:02:57.7]}
4. g3 {[%clk 0:02:58.4]} 4... Be7 {[%clk 0:02:57.3]} 5. Bg2 {[%clk 0:02:58.6]}
5... O-O {[%clk 0:02:57.9]} 6. O-O {[%clk 0:02:58.8]} 6... dxc4 {[%clk
0:02:58.3]} 7. Qc2 {[%clk 0:02:59]} 7... a6 {[%clk 0:02:57.2]} 8. a4 {[%clk
0:02:58.5]} 8... Bd7 {[%clk 0:02:57]} 9. Qxc4 {[%clk 0:02:58.4]} 9... Bc6 {[%clk
0:02:57]} 10. Bg5 {[%clk 0:02:57.6]} 10... Bd5 {[%clk 0:02:49.7]} 11. Qd3 {[%clk
0:02:55.5]} 11... Be4 {[%clk 0:02:47.7]} 12. Qd1 {[%clk 0:02:55.5]} 12... c5
{[%clk 0:02:44]} 13. Nc3 {[%clk 0:02:51.9]} 13... Bxf3 {[%clk 0:02:40.2]} 14.
Bxf3 {[%clk 0:02:51.1]} 14... cxd4 {[%clk 0:02:40.3]} 15. Bxf6 {[%clk
0:02:31.8]} 15... Bxf6 {[%clk 0:02:38.1]} 16. Ne4 {[%clk 0:02:31.8]} 16... Be7
{[%clk 0:02:16.2]} 17. Rc1 {[%clk 0:02:24.8]} 17... Qb6 {[%clk 0:02:11.7]} 18.
Qd2 {[%clk 0:02:14.1]} 18... Nc6 {[%clk 0:02:09.3]} 19. Rfd1 {[%clk 0:02:08.8]}
19... Bb4 {[%clk 0:02:04.2]} 20. Qd3 {[%clk 0:02:01.5]} 20... h6 {[%clk
0:01:45.4]} 21. Qb3 {[%clk 0:01:27.9]} 21... Rad8 {[%clk 0:01:31.6]} 22. Nd2
{[%clk 0:01:27.6]} 22... Na5 {[%clk 0:01:29.6]} 23. Qd3 {[%clk 0:01:24.9]} 23...
Bxd2 {[%clk 0:01:28.9]} 24. Rxd2 {[%clk 0:01:24.4]} 24... Nb3 {[%clk 0:01:26.5]}
25. Rc4 {[%clk 0:01:17.2]} 25... Nxd2 {[%clk 0:01:24.9]} 26. Qxd2 {[%clk
0:01:18.1]} 26... a5 {[%clk 0:01:11.5]} 27. Be4 {[%clk 0:01:16.8]} 27... f5
{[%clk 0:01:04.2]} 28. Bd3 {[%clk 0:01:13.7]} 28... e5 {[%clk 0:01:03.1]} 29.
Rc2 {[%clk 0:01:05]} 29... e4 {[%clk 0:01:02.1]} 30. Bc4+ {[%clk 0:01:05.2]}
30... Kh8 {[%clk 0:01:02.2]} 31. h4 {[%clk 0:01:03.9]} 31... f4 {[%clk
0:00:59.7]} 32. gxf4 {[%clk 0:00:58.9]} 32... Qf6 {[%clk 0:00:56.1]} 33. e3
{[%clk 0:00:58.3]} 33... Qxh4 {[%clk 0:00:54.1]} 34. exd4 {[%clk 0:00:50.4]}
34... Rxf4 {[%clk 0:00:51.7]} 35. Qe3 {[%clk 0:00:45.4]} 35... Rf3 {[%clk
0:00:45.8]} 36. Qe2 {[%clk 0:00:43.3]} 36... Qg4+ {[%clk 0:00:40.3]} 37. Kf1
{[%clk 0:00:43]} 37... e3 {[%clk 0:00:39.9]} 38. Qd3 {[%clk 0:00:38.1]} 38...
Rdf8 {[%clk 0:00:37.8]} 39. Bd5 {[%clk 0:00:36]} 39... Rxf2+ {[%clk 0:00:37.4]}
40. Ke1 {[%clk 0:00:36.5]} 40... Qg1+ {[%clk 0:00:36.3]} 41. Qf1 {[%clk
0:00:35.8]} 41... Qxf1# {[%clk 0:00:36.5]} 0-1

[Event "*** Titled Tuesday Blitz"]
[Site "Chess.com"]
[Date "2020.04.21"]
[Round "1"]
[White "Alopekos"]
[Black "Zurability"]
[Result "0-1"]
[WhiteElo "2385"]
[BlackElo "2736"]
[TimeControl "180+1"]
[EndTime "10:06:38 PDT"]
[Termination "Zurability won by resignation"]

1. e4 {[%clk 0:03:00.9]} 1... c5 {[%clk 0:02:59.9]} 2. Nc3 {[%clk 0:03:00.7]}
2... d6 {[%clk 0:02:58.6]} 3. Nge2 {[%clk 0:02:59.5]} 3... Nf6 {[%clk
0:02:56.8]} 4. d4 {[%clk 0:02:59.7]} 4... cxd4 {[%clk 0:02:57.2]} 5. Nxd4 {[%clk
0:03:00.6]} 5... a6 {[%clk 0:02:57.6]} 6. Be3 {[%clk 0:03:00.6]} 6... e5 {[%clk
0:02:56.6]} 7. Nb3 {[%clk 0:03:00.7]} 7... Be6 {[%clk 0:02:52.6]} 8. f4 {[%clk
0:03:00.7]} 8... exf4 {[%clk 0:02:41.5]} 9. Bxf4 {[%clk 0:03:01.6]} 9... Nc6
{[%clk 0:02:41.1]} 10. Qd2 {[%clk 0:03:01.6]} 10... Be7 {[%clk 0:02:37.1]} 11.
O-O-O {[%clk 0:03:01.7]} 11... O-O {[%clk 0:02:34.9]} 12. Bxd6 {[%clk
0:03:00.7]} 12... Bxd6 {[%clk 0:02:34.6]} 13. Qxd6 {[%clk 0:03:01.6]} 13... Qb6
{[%clk 0:02:34.5]} 14. Qc5 {[%clk 0:03:00.3]} 14... Qc7 {[%clk 0:02:31.8]} 15.
Qd6 {[%clk 0:03:00.5]} 15... Qb6 {[%clk 0:02:24.7]} 16. Nd5 {[%clk 0:02:28.3]}
16... Bxd5 {[%clk 0:02:04.5]} 17. exd5 {[%clk 0:02:29.2]} 17... Qe3+ {[%clk
0:02:02.5]} 18. Kb1 {[%clk 0:02:20.6]} 18... Rad8 {[%clk 0:02:03.4]} 19. Qc5
{[%clk 0:02:03.1]} 19... Nxd5 {[%clk 0:01:22]} 20. Rxd5 {[%clk 0:01:28.7]} 20...
Qxc5 {[%clk 0:01:19.4]} 21. Rxc5 {[%clk 0:01:28.9]} 21... Rd1+ {[%clk
0:01:19.3]} 22. Nc1 {[%clk 0:01:29.4]} 22... Re8 {[%clk 0:01:19]} 23. b3 {[%clk
0:00:19.2]} 23... Ree1 {[%clk 0:01:14.9]} 24. Kb2 {[%clk 0:00:19.1]} 24... Rxc1
{[%clk 0:01:08.6]} 25. Rf5 {[%clk 0:00:19.2]} 25... g6 {[%clk 0:00:37]} 26. Rf2
{[%clk 0:00:19]} 26... Nb4 {[%clk 0:00:27.6]} 27. a3 {[%clk 0:00:12]} 27... Nd5
{[%clk 0:00:27.4]} 28. Be2 {[%clk 0:00:06.4]} 0-1

[Event "*** Titled Tuesday Blitz"]
[Site "Chess.com"]
[Date "2020.04.21"]
[Round "1"]
[White "Swarnapuri"]
[Black "UmutErdemGunduz"]
[Result "1-0"]
[WhiteElo "2716"]
[BlackElo "2376"]
[TimeControl "180+1"]
[EndTime "10:06:38 PDT"]
[Termination "Swarnapuri won on time"]

1. d4 {[%clk 0:03:00.2]} 1... Nf6 {[%clk 0:02:59.8]} 2. Bf4 {[%clk 0:03:00.2]}
2... e6 {[%clk 0:02:59.6]} 3. e3 {[%clk 0:03:00.5]} 3... c5 {[%clk 0:02:59.2]}
4. Nf3 {[%clk 0:02:59.4]} 4... b6 {[%clk 0:02:55.1]} 5. Nc3 {[%clk 0:02:59.7]}
5... Be7 {[%clk 0:02:44.8]} 6. Nb5 {[%clk 0:02:59.3]} 6... Nd5 {[%clk
0:02:31.1]} 7. Nd6+ {[%clk 0:02:58.7]} 7... Kf8 {[%clk 0:02:08.7]} 8. Bg3 {[%clk
0:02:56.2]} 8... Ba6 {[%clk 0:02:06.2]} 9. c4 {[%clk 0:02:49]} 9... Nb4 {[%clk
0:02:00.4]} 10. a3 {[%clk 0:02:37]} 10... N4c6 {[%clk 0:01:50.6]} 11. Rc1 {[%clk
0:01:53.8]} 11... h5 {[%clk 0:01:33.5]} 12. h4 {[%clk 0:01:49.6]} 12... g6
{[%clk 0:01:29.5]} 13. Qc2 {[%clk 0:01:31.4]} 13... cxd4 {[%clk 0:01:08.8]} 14.
exd4 {[%clk 0:01:27.3]} 14... Kg7 {[%clk 0:01:08.2]} 15. d5 {[%clk 0:01:24.9]}
15... exd5 {[%clk 0:01:04.2]} 16. cxd5 {[%clk 0:01:25.8]} 16... Bxd6 {[%clk
0:00:35.6]} 17. Bxd6 {[%clk 0:01:17.7]} 17... Re8+ {[%clk 0:00:34.4]} 18. Kd1
{[%clk 0:01:11.3]} 18... Qf6 {[%clk 0:00:31.3]} 19. Qc3 {[%clk 0:00:53.7]} 19...
Bxf1 {[%clk 0:00:19.1]} 20. Rxf1 {[%clk 0:00:48]} 20... Na5 {[%clk 0:00:04.3]}
21. Be5 {[%clk 0:00:33.8]} 21... Rxe5 {[%clk 0:00:03.6]} 22. Qxe5 {[%clk
0:00:34.7]} 22... Na6 {[%clk 0:00:01.7]} 23. b4 {[%clk 0:00:30.1]} 23... Nb3
{[%clk 0:00:01.6]} 24. Qxf6+ {[%clk 0:00:28.5]} 24... Kxf6 {[%clk 0:00:01.7]}
25. Rc3 {[%clk 0:00:29.4]} 1-0